Workbook

Sheet Operating Summary (T12)
A1: Junction West Coffeyville | AB1: 10:44 AM
A2: Operating Statement T12 | AB2: 2024-12-19
A3: January through November 2024 | AB3: Accrual Basis
F4: Jan 24 | H4: Feb 24 | J4: Mar 24 | L4: Apr 24 | N4: May 24 | P4: Jun 24 | R4: Jul 24 | T4: Aug 24 | V4: Sep 24 | X4: Oct 24 | Z4: Nov 24 | AB4: TOTAL
B5: Ordinary Income/Expense
D6: Income
E7: 4-1000 · Rental Revenue | F7: 21668.14 | H7: 18759.66 | J7: 28281.75 | L7: 31387.16 | N7: 33281.74 | P7: 25096.06 | R7: 44303.34 | T7: 27577.28 | V7: 20498.81 | X7: 24610.75 | Z7: 17236.06 | AB7: =ROUND(SUM(F7:Z7),5) -> 292700.75
E8: 4-2000 · Ancillary Revenue | F8: 0 | H8: 60 | J8: 90 | L8: 75 | N8: 125 | P8: 95 | R8: 100 | T8: 95 | V8: 30 | X8: 45 | Z8: 30 | AB8: =ROUND(SUM(F8:Z8),5) -> 745
D9: Total Income | F9: =ROUND(SUM(F6:F8),5) -> 21668.14 | H9: =ROUND(SUM(H6:H8),5) -> 18819.66 | J9: =ROUND(SUM(J6:J8),5) -> 28371.75 | L9: =ROUND(SUM(L6:L8),5) -> 31462.16 | N9: =ROUND(SUM(N6:N8),5) -> 33406.74 | P9: =ROUND(SUM(P6:P8),5) -> 25191.06 | R9: =ROUND(SUM(R6:R8),5) -> 44403.34 | T9: =ROUND(SUM(T6:T8),5) -> 27672.28 | V9: =ROUND(SUM(V6:V8),5) -> 20528.81 | X9: =ROUND(SUM(X6:X8),5) -> 24655.75 | Z9: =ROUND(SUM(Z6:Z8),5) -> 17266.06 | AB9: =ROUND(SUM(F9:Z9),5) -> 293445.75
C10: Gross Profit | F10: =F9 -> 21668.14 | H10: =H9 -> 18819.66 | J10: =J9 -> 28371.75 | L10: =L9 -> 31462.16 | N10: =N9 -> 33406.74 | P10: =P9 -> 25191.06 | R10: =R9 -> 44403.34 | T10: =T9 -> 27672.28 | V10: =V9 -> 20528.81 | X10: =X9 -> 24655.75 | Z10: =Z9 -> 17266.06 | AB10: =ROUND(SUM(F10:Z10),5) -> 293445.75
D11: Expense
E12: 6-1100 · Housekeeping | F12: 0 | H12: 0 | J12: 42.44 | L12: 0 | N12: 0 | P12: 0 | R12: 0 | T12: 0 | V12: 0 | X12: 413.95 | Z12: 50.26 | AB12: =ROUND(SUM(F12:Z12),5) -> 506.65
E13: 6-1300 · Front Desk | F13: 2637.73 | H13: 980.6 | J13: 1913.03 | L13: 470.82 | N13: 261.44 | P13: 71.42 | R13: 852.76 | T13: 2688.89 | V13: 797.46 | X13: 81.92 | Z13: 351.33 | AB13: 11107.4
E14: 6-1600 · Utilities | F14: 19391.41 | H14: 13083.86 | J14: 10643.04 | L14: 1636.65 | N14: 13687.99 | P14: 11255.7 | R14: 13007.63 | T14: 12057.78 | V14: 1911.02 | X14: 9597.4 | Z14: 12953.34 | AB14: 119225.82
E15: 6-1700 · Repairs & Maintenance | F15: 1699.88 | H15: 414.53 | J15: 4602.43 | L15: 4621.19 | N15: 5428.81 | P15: 1042.1 | R15: 794.59 | T15: 1945.06 | V15: 1166.67 | X15: 3460.49 | Z15: 128.2 | AB15: 25303.95
E16: 6-1800 · Marketing | F16: 0 | H16: 0 | J16: 3100 | L16: 800 | N16: 800 | P16: 1088 | R16: 800 | T16: 1088 | V16: 800 | X16: 0 | Z16: 0 | AB16: 8476
E17: 6-1900 · General & Administrative | F17: 1359.85 | H17: 1948.83 | J17: 1220.62 | L17: 1063.36 | N17: 2373.81 | P17: 1206.89 | R17: 981.65 | T17: 1358.14 | V17: 771.61 | X17: 532.35 | Z17: 706.7 | AB17: 13523.81
E18: 6-2000 · Payroll Expenses | F18: 8253.34 | H18: 5723.3 | J18: 6445.68 | L18: 7278.06 | N18: 11101.31 | P18: 7236.56 | R18: 6514.82 | T18: 7059.32 | V18: 7804.14 | X18: 9471.33 | Z18: 6406.17 | AB18: 83294.03
E19: 6-2100 · Insurance | F19: 2614.55 | H19: 2614.55 | J19: 4903.27 | L19: 3377.45 | N19: 2635.9 | P19: 2635.9 | R19: 2635.91 | T19: 2635.9 | V19: 2635.9 | X19: 2635.9 | Z19: 2635.9 | AB19: 31961.13
E20: 6-2200 · Property Management Fee | F20: 3187.81 | H20: 3983.62 | J20: 2876.85 | L20: 2642.79 | N20: 2742.99 | P20: 2596.14 | R20: 3643.15 | T20: 2484.92 | V20: -3772.49 | X20: -17.78 | Z20: 1650 | AB20: 22018
E21: 6-4000 · Property Taxes | F21: 2444.17 | H21: 2444.17 | J21: 884.51 | L21: 1924.28 | N21: 1330.49 | P21: 1924.28 | R21: 1924.28 | T21: 1924.28 | V21: 1924.28 | X21: 1924.28 | Z21: 1924.28 | AB21: 20573.3
D22: Total Expense | F22: =ROUND(SUM(F11:F21),5) -> 41588.74 | H22: =ROUND(SUM(H11:H21),5) -> 31193.46 | J22: =ROUND(SUM(J11:J21),5) -> 36631.87 | L22: =ROUND(SUM(L11:L21),5) -> 23814.6 | N22: =ROUND(SUM(N11:N21),5) -> 40362.74 | P22: =ROUND(SUM(P11:P21),5) -> 29056.99 | R22: =ROUND(SUM(R11:R21),5) -> 31154.79 | T22: =ROUND(SUM(T11:T21),5) -> 33242.29 | V22: =ROUND(SUM(V11:V21),5) -> 14038.59 | X22: =ROUND(SUM(X11:X21),5) -> 28099.84 | Z22: =ROUND(SUM(Z11:Z21),5) -> 26806.18 | AB22: 335990.09
B23: Net Ordinary Income | F23: =ROUND(F5+F10-F22,5) -> -19920.6 | H23: =ROUND(H5+H10-H22,5) -> -12373.8 | J23: =ROUND(J5+J10-J22,5) -> -8260.12 | L23: =ROUND(L5+L10-L22,5) -> 7647.56 | N23: =ROUND(N5+N10-N22,5) -> -6956 | P23: =ROUND(P5+P10-P22,5) -> -3865.93 | R23: =ROUND(R5+R10-R22,5) -> 13248.55 | T23: =ROUND(T5+T10-T22,5) -> -5570.01 | V23: =ROUND(V5+V10-V22,5) -> 6490.22 | X23: =ROUND(X5+X10-X22,5) -> -3444.09 | Z23: =ROUND(Z5+Z10-Z22,5) -> -9540.12 | AB23: -42544.34

Sheet Alert (hidden)
